[Event "Denmark Team Championship 2022"]
[Site "Denmark"]
[Date "2022.10.29"]
[Round "1.8"]
[White "Jorgensen, Brian Jorgen"]
[Black "Berg, Klaus"]
[Result "1-0"]
[ECO "A06"]
[WhiteElo "2150"]
[BlackElo "2278"]
[Annotator "ChessBase"]
[PlyCount "103"]
[EventDate "2022.10.29"]
[EventType "team-tourn"]
[EventCountry "DEN"]
[SourceTitle "playchess.com"]
[Source "ChessBase"]
[SourceQuality "1"]
[TimeControl "40/5400+30:1800+30"]

1. Nf3 d5 {[%emt 0:00:17]} 2. c4 {[%emt 0:00:43]} c6 {[%emt 0:00:55]} 3. e3 {[%emt 0:00:39]} Nf6 {[%emt 0:00:42]} 4. Nc3 {[%emt 0:00:07]} e6 {[%emt 0:00:43]} 5. Qc2 {[%emt 0:01:38]} c5 {[%emt 0:08:12]} 6. cxd5 {[%emt 0:02:38]} exd5 {[%emt 0:00:05]} 7. d4 {[%emt 0:16:51]} Nc6 {[%emt 0:01:55]} 8. Bb5 {[%emt 0:01:52]} cxd4 {[%emt 0:03:04]} 9. Nxd4 {[%emt 0:02:14]} Bd7 {[%emt 0:00:24]} 10. O-O {[%emt 0:03:54]} a6 {[%emt 0:14:48]} 11. Nxc6 {[%emt 0:03:34]} bxc6 {[%emt 0:00:10]} 12. Be2 {[%emt 0:04:07]} Bd6 {[%emt 0:07:32]} 13. e4 {[%emt 0:08:50]} O-O {[%emt 0:06:46]} 14. Rd1 {[%emt 0:06:00]} Qc7 {[%emt 0:03:10]} 15. h3 {[%emt 0:06:01]} Rfe8 {[%emt 0:02:57]} 16. Bf3 {[%emt 0:01:03]} Be5 {[%emt 0:05:25]} 17. exd5 {[%emt 0:02:17]} cxd5 {[%emt 0:00:07]} 18. Be3 {[%emt 0:01:55]} Ne4 {[%emt 0:07:35]} 19. Rac1 {[%emt 0:04:58]} Rac8 {[%emt 0:03:39]} 20. Rxd5 {[%emt 0:05:15]} Nxc3 {[%emt 0:01:09]} 21. bxc3 {[%emt 0:02:34]} Bb5 {[%emt 0:07:41]} 22. a4 {[%emt 0:07:00]} Bc4 {[%emt 0:00:34]} 23. Rc5 {[%emt 0:00:36]} Qe7 {[%emt 0:00:35]} 24. Rxc8 {[%emt 0:00:54]} Rxc8 {[%emt 0:00:01]} 25. Qf5 {[%emt 0:02:01]} Qe6 {[%emt 0:07:06]} 26. Qxe6 {[%emt 0:01:29]} fxe6 {[%emt 0:00:05]} 27. Bd4 {[%emt 0:03:00]} Bf4 {[%emt 0:00:50]} 28. Rb1 {[%emt 0:00:40]} e5 {[%emt 0:02:42]} 29. Be3 {[%emt 0:01:16]} Bxe3 {[%emt 0:05:03]} 30. fxe3 {[%emt 0:00:06]} Kf7 {[%emt 0:00:55]} 31. Rb6 {[%emt 0:01:12]} Rd8 {[%emt 0:02:28]} 32. Rc6 {[%emt 0:02:22]} Bd3 {[%emt 0:00:12]} 33. c4 {[%emt 0:00:53]} e4 {[%emt 0:01:03]} 34. Bg4 {[%emt 0:00:08]} Rb8 {[%emt 0:01:14]} 35. Be6+ {[%emt 0:01:08]} Ke7 {[%emt 0:00:01]} 36. Rxa6 {[%emt 0:00:31]} Rb1+ {[%emt 0:01:02]} 37. Kf2 {[%emt 0:00:41]} g5 {[%emt 0:01:34]} 38. Bd5 {[%emt 0:01:39]} Rb2+ {[%emt 0:01:24]} 39. Kg3 {[%emt 0:01:27]} h5 {[%emt 0:01:36]} 40. h4 {[%emt 0:04:59]} gxh4+ {[%emt 0:00:23]} 41. Kxh4 {[%emt 0:30:31]} Rxg2 {[%emt 0:30:38]} 42. Kxh5 {[%emt 0:00:57]} Rg3 {[%emt 0:00:00]} 43. Re6+ {[%emt 0:00:00]} Kd8 {[%emt 0:00:00]} 44. a5 {[%emt 0:00:00]} Rxe3 {[%emt 0:00:00]} 45. a6 {[%emt 0:00:00]} Rh3+ {[%emt 0:00:00]} 46. Kg4 {[%emt 0:00:00]} Rh7 {[%emt 0:00:00]} 47. Kf4 {[%emt 0:00:00]} Ra7 {[%emt 0:00:00]} 48. Ke3 {[%emt 0:00:00]} Kc8 {[%emt 0:00:00]} 49. Bb7+ {[%emt 0:00:00]} Kd7 {[%emt 0:00:00]} 50. Rxe4 {[%emt 0:00:00]} Bxe4 {[%emt 0:01:07]} 51. Kxe4 {[%emt 0:00:00]} Kc7 {[%emt 0:03:00]} 52. Kd5 {[%emt 0:00:00]} 1-0

[Event "Denmark Team Championship 2022"]
[Site "Denmark"]
[Date "2022.10.29"]
[Round "1.8"]
[White "Ejsing, Esben"]
[Black "Meskenas, Paulius"]
[Result "0-1"]
[ECO "C77"]
[WhiteElo "2116"]
[BlackElo "2038"]
[Annotator "ChessBase"]
[PlyCount "90"]
[EventDate "2022.10.29"]
[EventType "team-tourn"]
[EventCountry "DEN"]
[SourceTitle "playchess.com"]
[Source "ChessBase"]
[SourceQuality "1"]
[TimeControl "40/5400+30:1800+30"]

1. e4 {[%emt 0:00:11]} e5 {[%emt 0:00:06]} 2. Nf3 {[%emt 0:00:12]} Nc6 {[%emt 0:00:07]} 3. Bb5 {[%emt 0:00:23]} a6 {[%emt 0:00:09]} 4. Ba4 {[%emt 0:00:06]} Nf6 {[%emt 0:00:09]} 5. d3 {[%emt 0:00:55]} b5 {[%emt 0:01:29]} 6. Bb3 {[%emt 0:00:59]} Be7 {[%emt 0:01:29]} 7. c3 {[%emt 0:01:13]} d6 {[%emt 0:03:08]} 8. Nbd2 {[%emt 0:02:42]} O-O {[%emt 0:03:19]} 9. O-O {[%emt 0:03:34]} Be6 {[%emt 0:07:07]} 10. Bxe6 {[%emt 0:10:50]} fxe6 {[%emt 0:00:02]} 11. d4 {[%emt 0:00:37]} exd4 {[%emt 0:03:49]} 12. cxd4 {[%emt 0:00:17]} Qd7 {[%emt 0:00:15]} 13. Qe2 {[%emt 0:07:11]} e5 {[%emt 0:05:27]} 14. d5 {[%emt 0:03:28]} Nd8 {[%emt 0:00:24]} 15. a4 {[%emt 0:06:03]} Nb7 {[%emt 0:07:30]} 16. b3 {[%emt 0:05:00]} c6 {[%emt 0:00:21]} 17. dxc6 {[%emt 0:05:49]} Qxc6 {[%emt 0:00:01]} 18. Ba3 {[%emt 0:00:18]} Qd7 {[%emt 0:04:55]} 19. Rfd1 {[%emt 0:03:50]} Rac8 {[%emt 0:02:43]} 20. axb5 {[%emt 0:10:03]} axb5 {[%emt 0:00:17]} 21. Bb4 {[%emt 0:04:52]} Nc5 {[%emt 0:02:51]} 22. Ra5 {[%emt 0:01:11]} Rb8 {[%emt 0:03:44]} 23. Raa1 {[%emt 0:14:44]} Ne6 {[%emt 0:00:45]} 24. Nf1 {[%emt 0:03:18]} Nf4 {[%emt 0:03:59]} 25. Qe3 {[%emt 0:01:01]} Qg4 {[%emt 0:05:24]} 26. Ng3 {[%emt 0:01:01]} N6h5 {[%emt 0:09:44]} 27. Bxd6 {[%emt 0:04:26]} Bxd6 {[%emt 0:00:54]} 28. Rxd6 {[%emt 0:00:08]} Nxg2 {[%emt 0:00:17]} 29. Nxe5 {[%emt 0:02:32]} Qh3 {[%emt 0:00:43]} 30. Qg5 {[%emt 0:01:16]} Ngf4 {[%emt 0:17:59]} 31. Nf5 {[%emt 0:00:28]} Rxf5 {[%emt 0:11:11]} 32. exf5 {[%emt 0:00:41]} h6 {[%emt 0:00:01]} 33. Qg4 {[%emt 0:01:26]} Qc3 {[%emt 0:00:09]} 34. Rad1 {[%emt 0:01:30]} Qxe5 {[%emt 0:00:13]} 35. Kf1 {[%emt 0:01:56]} Qe4 {[%emt 0:00:36]} 36. f3 {[%emt 0:00:30]} Qe2+ {[%emt 0:01:20]} 37. Kg1 {[%emt 0:00:01]} Qe3+ {[%emt 0:00:53]} 38. Kh1 {[%emt 0:00:54]} Re8 {[%emt 0:00:15]} 39. R6d2 {[%emt 0:02:21]} Nf6 {[%emt 0:01:13]} 40. Qg3 {[%emt 0:00:49]} N4h5 {[%emt 0:01:21]} 41. Qg1 {[%emt 0:09:49]} Qxf3+ {[%emt 0:00:42]} 42. Qg2 {[%emt 0:00:11]} Qxf5 {[%emt 0:00:35]} 43. Rd8 {[%emt 0:00:28]} Rxd8 {[%emt 0:00:30]} 44. Rxd8+ {[%emt 0:00:02]} Kh7 {[%emt 0:00:11]} 45. Qe2 {[%emt 0:01:09]} Ne4 {[%emt 0:01:25]} 0-1

[Event "Denmark Team Championship 2022"]
[Site "Denmark"]
[Date "2022.10.29"]
[Round "1.8"]
[White "Pedersen, Peer Ole"]
[Black "Palm, Nikolaj"]
[Result "1/2-1/2"]
[ECO "D60"]
[WhiteElo "2085"]
[BlackElo "2308"]
[Annotator "ChessBase"]
[PlyCount "110"]
[EventDate "2022.10.29"]
[EventType "team-tourn"]
[EventCountry "DEN"]
[SourceTitle "playchess.com"]
[Source "ChessBase"]
[SourceQuality "1"]
[TimeControl "40/5400+30:1800+30"]

1. c4 {[%emt 0:00:05]} e6 {[%emt 0:00:18]} 2. Nc3 {[%emt 0:00:09]} d5 {[%emt 0:00:06]} 3. d4 {[%emt 0:00:18]} Nf6 {[%emt 0:00:17]} 4. Nf3 {[%emt 0:00:25]} Be7 {[%emt 0:01:25]} 5. Bg5 {[%emt 0:00:29]} Nbd7 {[%emt 0:00:38]} 6. e3 {[%emt 0:00:35]} O-O {[%emt 0:02:22]} 7. Bd3 {[%emt 0:00:18]} a6 {[%emt 0:02:23]} 8. Rc1 {[%emt 0:04:51]} h6 {[%emt 0:10:28]} 9. Bh4 {[%emt 0:01:05]} dxc4 {[%emt 0:02:41]} 10. Bxc4 {[%emt 0:01:23]} b5 {[%emt 0:00:28]} 11. Bd3 {[%emt 0:02:11]} Bb7 {[%emt 0:07:11]} 12. O-O {[%emt 0:04:21]} c5 {[%emt 0:05:59]} 13. Qe2 {[%emt 0:09:50]} cxd4 {[%emt 0:04:37]} 14. Nxd4 {[%emt 0:07:58]} Nc5 {[%emt 0:09:29]} 15. Bc2 {[%emt 0:13:12]} Nd5 {[%emt 0:15:42]} 16. Bxe7 {[%emt 0:05:26]} Nxc3 {[%emt 0:01:40]} 17. Bxd8 {[%emt 0:00:33]} Nxe2+ {[%emt 0:00:08]} 18. Nxe2 {[%emt 0:00:10]} Rfxd8 {[%emt 0:00:05]} 19. Rfd1 {[%emt 0:02:32]} b4 {[%emt 0:01:35]} 20. Rxd8+ {[%emt 0:10:41]} Rxd8 {[%emt 0:00:02]} 21. Rd1 {[%emt 0:00:27]} Rxd1+ {[%emt 0:04:19]} 22. Bxd1 {[%emt 0:00:09]} Nd3 {[%emt 0:00:18]} 23. b3 {[%emt 0:04:04]} e5 {[%emt 0:00:18]} 24. f3 {[%emt 0:01:52]} Kf8 {[%emt 0:04:17]} 25. Bc2 {[%emt 0:01:06]} Nc5 {[%emt 0:00:39]} 26. Kf2 {[%emt 0:01:08]} Ke7 {[%emt 0:02:09]} 27. g3 {[%emt 0:01:52]} a5 {[%emt 0:05:38]} 28. Nc1 {[%emt 0:01:17]} Ba6 {[%emt 0:04:05]} 29. e4 {[%emt 0:06:02]} Kd6 {[%emt 0:03:13]} 30. Ke3 {[%emt 0:00:20]} f6 {[%emt 0:02:28]} 31. Bd3 {[%emt 0:02:39]} Bc8 {[%emt 0:01:59]} 32. f4 {[%emt 0:03:46]} Be6 {[%emt 0:01:56]} 33. Bc2 {[%emt 0:02:07]} Bd7 {[%emt 0:01:45]} 34. Nd3 {[%emt 0:00:46]} Nxd3 {[%emt 0:03:58]} 35. Kxd3 {[%emt 0:00:52]} exf4 {[%emt 0:01:27]} 36. gxf4 {[%emt 0:00:09]} Kc5 {[%emt 0:00:07]} 37. f5 {[%emt 0:02:40]} Be8 {[%emt 0:00:52]} 38. Ke3 {[%emt 0:02:17]} Bf7 {[%emt 0:00:16]} 39. Bd1 {[%emt 0:00:44]} Be8 {[%emt 0:01:05]} 40. Kd3 {[%emt 0:00:23]} Bf7 {[%emt 0:00:45]} 41. Ke3 {[%emt 0:30:31]} a4 {[%emt 0:17:11]} 42. Bc2 {[%emt 0:00:00]} a3 {[%emt 0:00:30]} 43. Bd1 {[%emt 0:00:00]} Be8 {[%emt 0:12:07]} 44. Bc2 {[%emt 0:00:00]} g5 {[%emt 0:01:12]} 45. fxg6 {[%emt 0:00:00]} Bxg6 {[%emt 0:00:01]} 46. Bd3 {[%emt 0:00:00]} Bf7 {[%emt 0:00:48]} 47. Bc2 {[%emt 0:00:00]} Be6 {[%emt 0:00:21]} 48. Bd1 {[%emt 0:00:00]} Bf7 {[%emt 0:01:22]} 49. Bc2 {[%emt 0:00:00]} Bg6 {[%emt 0:00:50]} 50. Bd3 {[%emt 0:00:00]} Bf7 {[%emt 0:01:05]} 51. Bb1 {[%emt 0:00:00]} Bh5 {[%emt 0:00:24]} 52. Bc2 {[%emt 0:00:00]} Be8 {[%emt 0:00:34]} 53. Bd3 {[%emt 0:00:00]} Bf7 {[%emt 0:00:14]} 54. Bc2 {[%emt 0:00:00]} Bh5 {[%emt 0:00:11]} 55. Kd3 {[%emt 0:00:00]} Bf7 {[%emt 0:01:03]} 1/2-1/2

[Event "Denmark Team Championship 2022"]
[Site "Denmark"]
[Date "2022.10.30"]
[Round "2.1"]
[White "Neiksans, Arturs"]
[Black "Svane, Rasmus"]
[Result "1/2-1/2"]
[ECO "A06"]
[WhiteElo "2594"]
[BlackElo "2615"]
[Annotator "ChessBase"]
[PlyCount "27"]
[EventDate "2022.10.29"]
[EventType "team-tourn"]
[EventCountry "DEN"]
[SourceTitle "playchess.com"]
[Source "ChessBase"]
[SourceQuality "1"]
[TimeControl "40/5400+30:1800+30"]

1. Nf3 {[%emt 0:00:03]} d5 {[%emt 0:00:36]} 2. g3 {[%emt 0:00:08]} g6 {[%emt 0:00:43]} 3. Bg2 {[%emt 0:00:22]} Bg7 {[%emt 0:00:07]} 4. d4 {[%emt 0:00:48]} Nf6 {[%emt 0:00:15]} 5. O-O {[%emt 0:00:39]} O-O {[%emt 0:00:32]} 6. c4 {[%emt 0:01:57]} dxc4 {[%emt 0:02:40]} 7. Na3 {[%emt 0:00:38]} c5 {[%emt 0:00:16]} 8. Nxc4 {[%emt 0:14:31]} Be6 {[%emt 0:00:45]} 9. Nce5 {[%emt 0:02:24]} cxd4 {[%emt 0:10:16]} 10. Qxd4 {[%emt 0:09:13]} Bd5 {[%emt 0:33:15]} 11. Rd1 {[%emt 0:13:18]} Nc6 {[%emt 0:03:22]} 12. Qc5 {[%emt 0:11:13]} Qb6 {[%emt 0:07:21]} 13. Qxb6 {[%emt 0:09:09]} axb6 {[%emt 0:00:07]} 14. Be3 {[%emt 0:01:55]} 1/2-1/2

[Event "Denmark Team Championship 2022"]
[Site "Denmark"]
[Date "2022.10.30"]
[Round "2.1"]
[White "Hansen, Sune Berg"]
[Black "Ochsner, Bjorn Moller"]
[Result "1/2-1/2"]
[ECO "B50"]
[WhiteElo "2525"]
[BlackElo "2504"]
[Annotator "ChessBase"]
[PlyCount "52"]
[EventDate "2022.10.29"]
[EventType "team-tourn"]
[EventCountry "DEN"]
[SourceTitle "playchess.com"]
[Source "ChessBase"]
[SourceQuality "1"]
[TimeControl "40/5400+30:1800+30"]

1. e4 {[%emt 0:00:19]} c5 {[%emt 0:00:30]} 2. Nf3 {[%emt 0:00:21]} d6 {[%emt 0:00:09]} 3. g3 {[%emt 0:00:32]} Nc6 {[%emt 0:07:09]} 4. Bg2 {[%emt 0:01:13]} g6 {[%emt 0:00:42]} 5. O-O {[%emt 0:00:25]} Bg7 {[%emt 0:00:31]} 6. c3 {[%emt 0:01:25]} e5 {[%emt 0:00:26]} 7. d3 {[%emt 0:00:27]} Nge7 {[%emt 0:00:35]} 8. a3 {[%emt 0:00:06]} O-O {[%emt 0:20:11]} 9. b4 {[%emt 0:01:00]} b6 {[%emt 0:00:56]} 10. Nbd2 {[%emt 0:04:00]} Ba6 {[%emt 0:12:08]} 11. Qc2 {[%emt 0:09:22]} Rc8 {[%emt 0:02:24]} 12. Qb1 {[%emt 0:02:13]} Bb7 {[%emt 0:02:29]} 13. Re1 {[%emt 0:02:30]} Qd7 {[%emt 0:08:07]} 14. Bb2 {[%emt 0:03:37]} h6 {[%emt 0:03:26]} 15. d4 {[%emt 0:10:42]} exd4 {[%emt 0:12:41]} 16. cxd4 {[%emt 0:02:28]} Nxd4 {[%emt 0:00:31]} 17. Nxd4 {[%emt 0:00:39]} cxd4 {[%emt 0:00:04]} 18. Nf3 {[%emt 0:00:59]} Nc6 {[%emt 0:04:25]} 19. Rd1 {[%emt 0:07:22]} Ne5 {[%emt 0:01:41]} 20. Bxd4 {[%emt 0:02:02]} Qg4 {[%emt 0:00:36]} 21. Nxe5 {[%emt 0:02:51]} dxe5 {[%emt 0:01:31]} 22. Be3 {[%emt 0:01:53]} Rfd8 {[%emt 0:13:16]} 23. Rxd8+ {[%emt 0:06:36]} Rxd8 {[%emt 0:00:02]} 24. Qf1 {[%emt 0:03:00]} h5 {[%emt 0:02:41]} 25. Rc1 {[%emt 0:01:07]} Rc8 {[%emt 0:01:26]} 26. h3 {[%emt 0:03:37]} Rxc1 {[%emt 0:00:26]} 1/2-1/2

[Event "Denmark Team Championship 2022"]
[Site "Denmark"]
[Date "2022.10.30"]
[Round "2.1"]
[White "Mikkelsen, Nikolaj"]
[Black "Hillarp Persson, Tiger"]
[Result "1/2-1/2"]
[ECO "B51"]
[WhiteElo "2475"]
[BlackElo "2511"]
[Annotator "ChessBase"]
[PlyCount "123"]
[EventDate "2022.10.29"]
[EventType "team-tourn"]
[EventCountry "DEN"]
[SourceTitle "playchess.com"]
[Source "ChessBase"]
[SourceQuality "1"]
[TimeControl "40/5400+30:1800+30"]

1. e4 {[%emt 0:00:06]} c5 {[%emt 0:00:16]} 2. Nf3 {[%emt 0:00:09]} d6 {[%emt 0:00:07]} 3. Bb5+ {[%emt 0:00:08]} Nd7 {[%emt 0:00:05]} 4. O-O {[%emt 0:00:09]} Ngf6 {[%emt 0:00:06]} 5. Re1 {[%emt 0:04:21]} a6 {[%emt 0:00:06]} 6. Bf1 {[%emt 0:00:05]} b6 {[%emt 0:00:17]} 7. d4 {[%emt 0:00:31]} cxd4 {[%emt 0:00:07]} 8. Nxd4 {[%emt 0:00:06]} Bb7 {[%emt 0:00:06]} 9. c4 {[%emt 0:00:23]} e6 {[%emt 0:05:28]} 10. Nc3 {[%emt 0:00:10]} Be7 {[%emt 0:00:30]} 11. f3 {[%emt 0:00:49]} Rc8 {[%emt 0:09:43]} 12. a4 {[%emt 0:16:47]} O-O {[%emt 0:05:02]} 13. Be3 {[%emt 0:03:06]} Ne5 {[%emt 0:02:10]} 14. b3 {[%emt 0:02:00]} Qc7 {[%emt 0:01:24]} 15. Rc1 {[%emt 0:02:59]} Rfe8 {[%emt 0:04:32]} 16. Kh1 {[%emt 0:08:21]} Qb8 {[%emt 0:14:14]} 17. Qd2 {[%emt 0:00:48]} Bd8 {[%emt 0:18:27]} 18. Red1 {[%emt 0:00:59]} Bc7 {[%emt 0:02:14]} 19. Bg1 {[%emt 0:00:20]} h5 {[%emt 0:03:07]} 20. Rb1 {[%emt 0:04:46]} h4 {[%emt 0:00:55]} 21. Qf2 {[%emt 0:03:54]} Ng6 {[%emt 0:13:44]} 22. b4 {[%emt 0:00:39]} Qa8 {[%emt 0:00:43]} 23. b5 {[%emt 0:09:20]} a5 {[%emt 0:03:21]} 24. Nc6 {[%emt 0:00:07]} Bxc6 {[%emt 0:00:06]} 25. bxc6 {[%emt 0:00:05]} Qxc6 {[%emt 0:00:08]} 26. Nb5 {[%emt 0:01:07]} Nd7 {[%emt 0:01:53]} 27. Na7 {[%emt 0:04:30]} Qa8 {[%emt 0:00:08]} 28. Nxc8 {[%emt 0:00:06]} Rxc8 {[%emt 0:00:14]} 29. Qb2 {[%emt 0:22:17]} Nc5 {[%emt 0:00:07]} 30. Bd4 {[%emt 0:01:08]} Nxa4 {[%emt 0:06:22]} 31. Qa1 {[%emt 0:00:08]} e5 {[%emt 0:00:39]} 32. Qxa4 {[%emt 0:00:25]} exd4 {[%emt 0:00:08]} 33. Rxd4 {[%emt 0:00:17]} Ne5 {[%emt 0:00:35]} 34. Qd1 {[%emt 0:05:26]} Re8 {[%emt 0:01:47]} 35. g3 {[%emt 0:01:23]} Qd8 {[%emt 0:01:44]} 36. Bg2 {[%emt 0:03:24]} hxg3 {[%emt 0:02:26]} 37. hxg3 {[%emt 0:00:13]} Qf6 {[%emt 0:00:15]} 38. Kg1 {[%emt 0:04:11]} Nc6 {[%emt 0:04:26]} 39. Rd5 {[%emt 0:02:25]} Nb4 {[%emt 0:00:14]} 40. Rf5 {[%emt 0:01:48]} Qg6 {[%emt 0:01:30]} 41. f4 {[%emt 0:03:41]} Qe6 {[%emt 0:04:54]} 42. Rh5 {[%emt 0:12:28]} Bd8 {[%emt 0:04:57]} 43. Qd4 {[%emt 0:03:42]} Qg6 {[%emt 0:14:02]} 44. Rh3 {[%emt 0:01:21]} b5 {[%emt 0:00:20]} 45. Kh2 {[%emt 0:01:40]} bxc4 {[%emt 0:01:02]} 46. Rh1 {[%emt 0:04:45]} Qf6 {[%emt 0:00:36]} 47. Qxc4 {[%emt 0:00:35]} g6 {[%emt 0:00:55]} 48. Rd1 {[%emt 0:01:05]} Bb6 {[%emt 0:05:43]} 49. Qb5 {[%emt 0:01:26]} Rb8 {[%emt 0:00:05]} 50. Qd7 {[%emt 0:00:42]} Bc5 {[%emt 0:00:37]} 51. Qc7 {[%emt 0:01:16]} Qd8 {[%emt 0:00:19]} 52. Qxd8+ {[%emt 0:00:32]} Rxd8 {[%emt 0:00:06]} 53. e5 {[%emt 0:00:47]} Nc2 {[%emt 0:00:55]} 54. Bf3 {[%emt 0:02:57]} Nd4 {[%emt 0:00:32]} 55. Kg2 {[%emt 0:00:25]} dxe5 {[%emt 0:00:11]} 56. fxe5 {[%emt 0:00:07]} Rb8 {[%emt 0:00:32]} 57. Rd2 {[%emt 0:00:37]} Re8 {[%emt 0:00:14]} 58. Rh4 {[%emt 0:00:25]} Nxf3 {[%emt 0:00:21]} 59. Kxf3 {[%emt 0:00:04]} Rxe5 {[%emt 0:00:19]} 60. Re4 {[%emt 0:00:33]} Rxe4 {[%emt 0:01:17]} 61. Kxe4 {[%emt 0:00:16]} Kg7 {[%emt 0:00:45]} 62. Rd5 {[%emt 0:01:00]} 1/2-1/2

[Event "Denmark Team Championship 2022"]
[Site "Denmark"]
[Date "2022.10.30"]
[Round "2.1"]
[White "Hector, Jonny"]
[Black "Matthiesen, Martin"]
[Result "1-0"]
[ECO "C55"]
[WhiteElo "2454"]
[BlackElo "2328"]
[Annotator "ChessBase"]
[PlyCount "117"]
[EventDate "2022.10.29"]
[EventType "team-tourn"]
[EventCountry "DEN"]
[SourceTitle "playchess.com"]
[Source "ChessBase"]
[SourceQuality "1"]
[TimeControl "40/5400+30:1800+30"]

1. e4 {[%emt 0:01:40]} e5 {[%emt 0:00:06]} 2. Nf3 {[%emt 0:01:31]} Nc6 {[%emt 0:00:09]} 3. Bc4 {[%emt 0:00:09]} Nf6 {[%emt 0:00:29]} 4. Qe2 {[%emt 0:00:28]} Bc5 {[%emt 0:01:02]} 5. c3 {[%emt 0:00:13]} O-O {[%emt 0:03:54]} 6. d3 {[%emt 0:00:19]} d5 {[%emt 0:02:24]} 7. Bb3 {[%emt 0:00:18]} dxe4 {[%emt 0:17:15]} 8. dxe4 {[%emt 0:00:21]} Qe7 {[%emt 0:00:18]} 9. Bg5 {[%emt 0:07:13]} Nd8 {[%emt 0:12:33]} 10. Nbd2 {[%emt 0:10:44]} Ne6 {[%emt 0:00:35]} 11. h4 {[%emt 0:02:08]} h6 {[%emt 0:11:08]} 12. Bxf6 {[%emt 0:00:26]} Qxf6 {[%emt 0:00:07]} 13. g3 {[%emt 0:00:17]} a5 {[%emt 0:04:29]} 14. Nc4 {[%emt 0:08:42]} a4 {[%emt 0:00:32]} 15. Bc2 {[%emt 0:02:04]} Bd6 {[%emt 0:00:26]} 16. Nh2 {[%emt 0:03:30]} Qe7 {[%emt 0:18:43]} 17. Ng4 {[%emt 0:05:43]} Nc5 {[%emt 0:01:25]} 18. Rd1 {[%emt 0:01:28]} b5 {[%emt 0:05:04]} 19. Nce3 {[%emt 0:06:41]} c6 {[%emt 0:01:49]} 20. Nf5 {[%emt 0:01:02]} Bxf5 {[%emt 0:00:08]} 21. exf5 {[%emt 0:00:04]} f6 {[%emt 0:00:43]} 22. O-O {[%emt 0:06:36]} Rfd8 {[%emt 0:04:48]} 23. b4 {[%emt 0:01:38]} axb3 {[%emt 0:00:16]} 24. axb3 {[%emt 0:00:08]} Qc7 {[%emt 0:06:44]} 25. Qf3 {[%emt 0:05:22]} Be7 {[%emt 0:03:45]} 26. b4 {[%emt 0:01:28]} Na4 {[%emt 0:00:30]} 27. Be4 {[%emt 0:06:45]} Rac8 {[%emt 0:00:33]} 28. Rxd8+ {[%emt 0:02:31]} Bxd8 {[%emt 0:00:07]} 29. Bc2 {[%emt 0:01:54]} Be7 {[%emt 0:01:43]} 30. c4 {[%emt 0:02:11]} Rd8 {[%emt 0:02:15]} 31. Bb3 {[%emt 0:09:26]} Kh8 {[%emt 0:00:07]} 32. Rc1 {[%emt 0:05:06]} Qd7 {[%emt 0:00:20]} 33. Rd1 {[%emt 0:02:18]} Qe8 {[%emt 0:00:18]} 34. Rxd8 {[%emt 0:01:08]} Bxd8 {[%emt 0:00:15]} 35. Bxa4 {[%emt 0:00:53]} bxa4 {[%emt 0:00:04]} 36. Qa3 {[%emt 0:03:06]} Qd7 {[%emt 0:00:09]} 37. Ne3 {[%emt 0:00:41]} Qa7 {[%emt 0:00:39]} 38. c5 {[%emt 0:00:14]} Qa6 {[%emt 0:00:53]} 39. Kg2 {[%emt 0:01:03]} e4 {[%emt 0:01:33]} 40. Qa2 {[%emt 0:01:29]} Bc7 {[%emt 0:01:29]} 41. Qf7 {[%emt 0:12:30]} a3 {[%emt 0:18:47]} 42. Ng4 {[%emt 0:03:32]} Bd8 {[%emt 0:01:42]} 43. Qe8+ {[%emt 0:05:01]} Kh7 {[%emt 0:00:09]} 44. Qxd8 {[%emt 0:00:15]} a2 {[%emt 0:00:08]} 45. Nxf6+ {[%emt 0:02:07]} gxf6 {[%emt 0:00:06]} 46. Qe7+ {[%emt 0:00:05]} Kg8 {[%emt 0:00:10]} 47. Qe8+ {[%emt 0:00:09]} Kg7 {[%emt 0:00:08]} 48. Qg6+ {[%emt 0:01:24]} Kf8 {[%emt 0:00:06]} 49. Qxf6+ {[%emt 0:03:44]} Ke8 {[%emt 0:05:22]} 50. b5 {[%emt 0:03:22]} Qa3 {[%emt 0:01:07]} 51. Qxc6+ {[%emt 0:00:59]} Kf7 {[%emt 0:04:31]} 52. Qe6+ {[%emt 0:01:05]} Kf8 {[%emt 0:00:06]} 53. Qxh6+ {[%emt 0:00:16]} Kf7 {[%emt 0:01:22]} 54. Qe6+ {[%emt 0:00:42]} Kf8 {[%emt 0:00:33]} 55. f6 {[%emt 0:01:43]} Qa7 {[%emt 0:03:16]} 56. b6 {[%emt 0:00:18]} Qf7 {[%emt 0:00:06]} 57. Qc8+ {[%emt 0:00:11]} Qe8 {[%emt 0:00:07]} 58. b7 {[%emt 0:00:26]} a1=Q {[%emt 0:00:10]} 59. Qxe8+ {[%emt 0:00:48]} 1-0

[Event "Denmark Team Championship 2022"]
[Site "Denmark"]
[Date "2022.10.30"]
[Round "2.1"]
[White "Petersen, Tom Petri"]
[Black "Nielsen, Viktor Haarmark"]
[Result "0-1"]
[ECO "A04"]
[WhiteElo "2300"]
[BlackElo "2384"]
[Annotator "ChessBase"]
[PlyCount "70"]
[EventDate "2022.10.29"]
[EventType "team-tourn"]
[EventCountry "DEN"]
[SourceTitle "playchess.com"]
[Source "ChessBase"]
[SourceQuality "1"]
[TimeControl "40/5400+30:1800+30"]

1. Nf3 {[%emt 0:00:08]} c5 {[%emt 0:00:44]} 2. g3 {[%emt 0:00:12]} Nc6 {[%emt 0:00:05]} 3. Bg2 {[%emt 0:00:29]} g6 {[%emt 0:00:12]} 4. O-O {[%emt 0:01:14]} Bg7 {[%emt 0:00:07]} 5. c4 {[%emt 0:02:17]} e6 {[%emt 0:00:07]} 6. Nc3 {[%emt 0:02:28]} Nge7 {[%emt 0:00:14]} 7. e3 {[%emt 0:03:08]} Nf5 {[%emt 0:01:37]} 8. d3 {[%emt 0:07:11]} O-O {[%emt 0:03:16]} 9. e4 {[%emt 0:08:22]} Nfd4 {[%emt 0:00:51]} 10. Nxd4 {[%emt 0:00:11]} Nxd4 {[%emt 0:02:09]} 11. Rb1 {[%emt 0:03:27]} Rb8 {[%emt 0:16:31]} 12. Be3 {[%emt 0:14:53]} d6 {[%emt 0:05:30]} 13. Ne2 {[%emt 0:09:25]} b5 {[%emt 0:17:56]} 14. cxb5 {[%emt 0:07:29]} Rxb5 {[%emt 0:00:44]} 15. Nxd4 {[%emt 0:01:44]} Bxd4 {[%emt 0:03:14]} 16. Bxd4 {[%emt 0:00:40]} cxd4 {[%emt 0:00:02]} 17. Qd2 {[%emt 0:04:35]} Bd7 {[%emt 0:01:46]} 18. Rfc1 {[%emt 0:06:57]} Qb8 {[%emt 0:01:46]} 19. b4 {[%emt 0:06:17]} a5 {[%emt 0:05:02]} 20. a3 {[%emt 0:00:21]} axb4 {[%emt 0:02:14]} 21. Rxb4 {[%emt 0:03:45]} Rxb4 {[%emt 0:00:11]} 22. axb4 {[%emt 0:01:15]} Qb6 {[%emt 0:01:17]} 23. h4 {[%emt 0:01:15]} h5 {[%emt 0:01:44]} 24. Bf1 {[%emt 0:00:45]} Rb8 {[%emt 0:00:38]} 25. Rb1 {[%emt 0:00:11]} Rc8 {[%emt 0:06:53]} 26. Qg5 {[%emt 0:03:03]} e5 {[%emt 0:06:09]} 27. Be2 {[%emt 0:01:48]} Bb5 {[%emt 0:12:04]} 28. Ra1 {[%emt 0:02:15]} Qd8 {[%emt 0:00:34]} 29. Qh6 {[%emt 0:01:53]} Ra8 {[%emt 0:02:57]} 30. Rxa8 {[%emt 0:04:18]} Qxa8 {[%emt 0:00:05]} 31. Qg5 {[%emt 0:01:02]} Kg7 {[%emt 0:02:38]} 32. Qe7 {[%emt 0:00:45]} Qa6 {[%emt 0:00:39]} 33. g4 {[%emt 0:02:42]} Bxd3 {[%emt 0:01:26]} 34. g5 {[%emt 0:00:22]} Bxe2 {[%emt 0:00:20]} 35. Qf6+ {[%emt 0:00:12]} Kg8 {[%emt 0:00:17]} 0-1